[Event "Live Chess"]
[Site "Chess.com"]
[Date "2011.01.27"]
[Round "-"]
[White "DarkAge86"]
[Black "hipposcottimus"]
[Result "1-0"]
[CurrentPosition "4R3/1p3kpp/p7/8/3q4/1PPn2P1/2K1Q2P/8 b - -"]
[Timezone "UTC"]
[ECO "A00"]
[ECOUrl "https://www.chess.com/openings/Vant-Kruijs-Opening-1...e5"]
[UTCDate "2011.01.27"]
[UTCTime "04:00:26"]
[WhiteElo "1458"]
[BlackElo "1591"]
[TimeControl "60"]
[Termination "DarkAge86 won on time"]
[StartTime "04:00:26"]
[EndDate "2011.01.27"]
[EndTime "04:02:33"]
[Link "https://www.chess.com/game/live/91787594"]

1. e3 {[%clk 0:01:00]} 1... e5 {[%clk 0:01:00]} 2. b3 {[%clk 0:00:59.6]} 2... d5 {[%clk 0:00:59.6]} 3. Bb2 {[%clk 0:00:59.2]} 3... Nc6 {[%clk 0:00:58.8]} 4. g3 {[%clk 0:00:58.7]} 4... Bd6 {[%clk 0:00:58.3]} 5. Ne2 {[%clk 0:00:58.3]} 5... f6 {[%clk 0:00:56.4]} 6. Bg2 {[%clk 0:00:57.1]} 6... Nge7 {[%clk 0:00:56.1]} 7. d3 {[%clk 0:00:56.3]} 7... Be6 {[%clk 0:00:55.5]} 8. Nbc3 {[%clk 0:00:55.4]} 8... O-O {[%clk 0:00:55.2]} 9. Nb5 {[%clk 0:00:54.5]} 9... a6 {[%clk 0:00:53.6]} 10. Nxd6 {[%clk 0:00:53.9]} 10... cxd6 {[%clk 0:00:53.2]} 11. e4 {[%clk 0:00:52.4]} 11... d4 {[%clk 0:00:52.8]} 12. f4 {[%clk 0:00:51.4]} 12... f5 {[%clk 0:00:52.5]} 13. fxe5 {[%clk 0:00:48.5]} 13... fxe4 {[%clk 0:00:52.2]} 14. exd6 {[%clk 0:00:46.5]} 14... Qxd6 {[%clk 0:00:51.9]} 15. Bxe4 {[%clk 0:00:43.9]} 15... Bf5 {[%clk 0:00:51.5]} 16. Bxf5 {[%clk 0:00:41.8]} 16... Rxf5 {[%clk 0:00:50]} 17. Qd2 {[%clk 0:00:39.8]} 17... Re5 {[%clk 0:00:48.8]} 18. O-O-O {[%clk 0:00:38.1]} 18... Nd5 {[%clk 0:00:46.7]} 19. Rde1 {[%clk 0:00:37.1]} 19... Ndb4 {[%clk 0:00:41.9]} 20. Ba3 {[%clk 0:00:32.4]} 20... Nxa2+ {[%clk 0:00:40.4]} 21. Kb1 {[%clk 0:00:30.6]} 21... Ncb4 {[%clk 0:00:36.8]} 22. Nxd4 {[%clk 0:00:22]} 22... Qxd4 {[%clk 0:00:35.9]} 23. Bxb4 {[%clk 0:00:19.4]} 23... Nxb4 {[%clk 0:00:18.9]} 24. Rxe5 {[%clk 0:00:17.2]} 24... Rc8 {[%clk 0:00:18.5]} 25. Rhe1 {[%clk 0:00:12.8]} 25... Qb6 {[%clk 0:00:17]} 26. Re8+ {[%clk 0:00:11.1]} 26... Rxe8 {[%clk 0:00:15.5]} 27. Rxe8+ {[%clk 0:00:10.5]} 27... Kf7 {[%clk 0:00:15.2]} 28. Qe2 {[%clk 0:00:08.8]} 28... Qg1+ {[%clk 0:00:11.4]} 29. Kb2 {[%clk 0:00:07]} 29... Qd4+ {[%clk 0:00:09.5]} 30. c3 {[%clk 0:00:04.6]} 30... Nxd3+ {[%clk 0:00:08.2]} 31. Kc2 {[%clk 0:00:00.1]} 1-0

[Event "Live Chess"]
[Site "Chess.com"]
[Date "2011.01.27"]
[Round "-"]
[White "hipposcottimus"]
[Black "DarkAge86"]
[Result "1-0"]
[CurrentPosition "2brr3/ppp2Rkp/4p1p1/4N3/3P4/2P5/PP4PP/R2Q2K1 b - -"]
[Timezone "UTC"]
[ECO "C00"]
[ECOUrl "https://www.chess.com/openings/French-Defense-Normal-Variation"]
[UTCDate "2011.01.27"]
[UTCTime "03:59:14"]
[WhiteElo "1601"]
[BlackElo "1446"]
[TimeControl "60"]
[Termination "hipposcottimus won by resignation"]
[StartTime "03:59:14"]
[EndDate "2011.01.27"]
[EndTime "04:00:05"]
[Link "https://www.chess.com/game/live/91787380"]

1. e4 {[%clk 0:01:00]} 1... e6 {[%clk 0:01:00]} 2. d4 {[%clk 0:00:58.9]} 2... g6 {[%clk 0:00:59.6]} 3. e5 {[%clk 0:00:57.7]} 3... Bg7 {[%clk 0:00:59.3]} 4. f4 {[%clk 0:00:57.4]} 4... d6 {[%clk 0:00:58.7]} 5. Nf3 {[%clk 0:00:56]} 5... Nc6 {[%clk 0:00:56.5]} 6. c3 {[%clk 0:00:54.6]} 6... Nge7 {[%clk 0:00:55.5]} 7. Bb5 {[%clk 0:00:53]} 7... dxe5 {[%clk 0:00:55.1]} 8. Bxc6+ {[%clk 0:00:52.3]} 8... Nxc6 {[%clk 0:00:54.3]} 9. fxe5 {[%clk 0:00:51.8]} 9... Bd7 {[%clk 0:00:52]} 10. O-O {[%clk 0:00:51.4]} 10... O-O {[%clk 0:00:51]} 11. Bg5 {[%clk 0:00:51]} 11... Qe8 {[%clk 0:00:47.2]} 12. Nbd2 {[%clk 0:00:48.1]} 12... Rd8 {[%clk 0:00:46.6]} 13. Ne4 {[%clk 0:00:47.4]} 13... Bc8 {[%clk 0:00:45.5]} 14. Bf6 {[%clk 0:00:46.2]} 14... Nxe5 {[%clk 0:00:43.5]} 15. Nxe5 {[%clk 0:00:42.5]} 15... Bxf6 {[%clk 0:00:42]} 16. Nxf6+ {[%clk 0:00:41.7]} 16... Kg7 {[%clk 0:00:39]} 17. Nxe8+ {[%clk 0:00:40.3]} 17... Rfxe8 {[%clk 0:00:38.6]} 18. Rxf7+ {[%clk 0:00:39.2]} 1-0

[Event "Live Chess"]
[Site "Chess.com"]
[Date "2011.01.27"]
[Round "-"]
[White "DarkAge86"]
[Black "hipposcottimus"]
[Result "1/2-1/2"]
[CurrentPosition "8/8/1R6/k6P/P2B2P1/1P1K4/8/8 b - a3"]
[Timezone "UTC"]
[ECO "A00"]
[ECOUrl "https://www.chess.com/openings/Vant-Kruijs-Opening-1...e5"]
[UTCDate "2011.01.27"]
[UTCTime "03:56:49"]
[WhiteElo "1451"]
[BlackElo "1596"]
[TimeControl "60"]
[Termination "Game drawn by stalemate"]
[StartTime "03:56:49"]
[EndDate "2011.01.27"]
[EndTime "03:59:00"]
[Link "https://www.chess.com/game/live/91786870"]

1. e3 {[%clk 0:01:00]} 1... e5 {[%clk 0:01:00]} 2. b3 {[%clk 0:00:59]} 2... e4 {[%clk 0:00:59]} 3. Bb2 {[%clk 0:00:58.7]} 3... d5 {[%clk 0:00:58.6]} 4. d3 {[%clk 0:00:58.1]} 4... f6 {[%clk 0:00:58.4]} 5. dxe4 {[%clk 0:00:57.3]} 5... dxe4 {[%clk 0:00:58.2]} 6. Qxd8+ {[%clk 0:00:55.4]} 6... Kxd8 {[%clk 0:00:58]} 7. Nd2 {[%clk 0:00:53.9]} 7... Nc6 {[%clk 0:00:57.7]} 8. Nxe4 {[%clk 0:00:52.4]} 8... f5 {[%clk 0:00:57.4]} 9. Ng5 {[%clk 0:00:50.4]} 9... h6 {[%clk 0:00:53.8]} 10. Nf7+ {[%clk 0:00:49.2]} 10... Kd7 {[%clk 0:00:52.6]} 11. Nxh8 {[%clk 0:00:48.5]} 11... Kd8 {[%clk 0:00:52.4]} 12. Ng6 {[%clk 0:00:47.5]} 12... Be6 {[%clk 0:00:51]} 13. Nxf8 {[%clk 0:00:46.1]} 13... Ke7 {[%clk 0:00:46.6]} 14. Nxe6 {[%clk 0:00:44.9]} 14... Kxe6 {[%clk 0:00:45.7]} 15. Bxg7 {[%clk 0:00:43.8]} 15... Rd8 {[%clk 0:00:45.2]} 16. Bb2 {[%clk 0:00:41.7]} 16... Re8 {[%clk 0:00:44.2]} 17. Nf3 {[%clk 0:00:40.8]} 17... Nb4 {[%clk 0:00:41.5]} 18. Nd4+ {[%clk 0:00:39.4]} 18... Kd5 {[%clk 0:00:39.6]} 19. Bd3 {[%clk 0:00:36.9]} 19... f4 {[%clk 0:00:38.3]} 20. Bc4+ {[%clk 0:00:30.7]} 20... Kc5 {[%clk 0:00:34.7]} 21. Ba3 {[%clk 0:00:28.5]} 21... fxe3 {[%clk 0:00:33.1]} 22. fxe3 {[%clk 0:00:27.2]} 22... Rxe3+ {[%clk 0:00:31.3]} 23. Kd2 {[%clk 0:00:26.5]} 23... Kxd4 {[%clk 0:00:25.1]} 24. Bxb4 {[%clk 0:00:23.8]} 24... c5 {[%clk 0:00:24.8]} 25. Bxc5+ {[%clk 0:00:22.2]} 25... Ke4 {[%clk 0:00:24.5]} 26. Bd5+ {[%clk 0:00:19.9]} 26... Kxd5 {[%clk 0:00:23.3]} 27. Bxe3 {[%clk 0:00:19]} 27... Nf6 {[%clk 0:00:23]} 28. Rhd1 {[%clk 0:00:18.4]} 28... Ne4+ {[%clk 0:00:22.6]} 29. Ke2+ {[%clk 0:00:17.9]} 29... Ke5 {[%clk 0:00:22.2]} 30. c4 {[%clk 0:00:17]} 30... Kf5 {[%clk 0:00:21.9]} 31. Rd5+ {[%clk 0:00:16]} 31... Ke6 {[%clk 0:00:19.3]} 32. g4 {[%clk 0:00:14.3]} 32... Nc3+ {[%clk 0:00:18.3]} 33. Kd3 {[%clk 0:00:11.8]} 33... Nxd5 {[%clk 0:00:18]} 34. cxd5+ {[%clk 0:00:11.2]} 34... Kxd5 {[%clk 0:00:17.8]} 35. Re1 {[%clk 0:00:10.7]} 35... Kc6 {[%clk 0:00:16.7]} 36. Bd4 {[%clk 0:00:10.3]} 36... Kc7 {[%clk 0:00:16.4]} 37. Re7+ {[%clk 0:00:09.3]} 37... Kd6 {[%clk 0:00:15.2]} 38. Rh7 {[%clk 0:00:08.9]} 38... Kc6 {[%clk 0:00:13.1]} 39. Rxh6+ {[%clk 0:00:08.6]} 39... Kd5 {[%clk 0:00:12.7]} 40. Rh7 {[%clk 0:00:08.2]} 40... Ke6 {[%clk 0:00:12.1]} 41. Rxb7 {[%clk 0:00:07.7]} 41... Kd6 {[%clk 0:00:11.1]} 42. Rxa7 {[%clk 0:00:07.3]} 42... Ke6 {[%clk 0:00:10.5]} 43. h4 {[%clk 0:00:06.9]} 43... Kd6 {[%clk 0:00:09]} 44. h5 {[%clk 0:00:06.5]} 44... Kc6 {[%clk 0:00:08.7]} 45. Ra6+ {[%clk 0:00:05.8]} 45... Kb5 {[%clk 0:00:08.3]} 46. Rb6+ {[%clk 0:00:05.3]} 46... Ka5 {[%clk 0:00:07.5]} 47. a4 {[%clk 0:00:04.8]} 1/2-1/2

[Event "Live Chess"]
[Site "Chess.com"]
[Date "2011.01.27"]
[Round "-"]
[White "hipposcottimus"]
[Black "germangreen_15"]
[Result "1-0"]
[CurrentPosition "4Q1k1/p4ppp/3N4/3q4/8/8/PPP2PPP/5RK1 b - -"]
[Timezone "UTC"]
[ECO "C50"]
[ECOUrl "https://www.chess.com/openings/Italian-Game-3...d6-4.d4-exd4-5.Nxd4"]
[UTCDate "2011.01.27"]
[UTCTime "03:54:38"]
[WhiteElo "1599"]
[BlackElo "1597"]
[TimeControl "60"]
[Termination "hipposcottimus won by checkmate"]
[StartTime "03:54:38"]
[EndDate "2011.01.27"]
[EndTime "03:56:27"]
[Link "https://www.chess.com/game/live/91786383"]

1. e4 {[%clk 0:01:00]} 1... e5 {[%clk 0:01:00]} 2. Nf3 {[%clk 0:00:59.5]} 2... Nc6 {[%clk 0:00:59.7]} 3. Bc4 {[%clk 0:00:59.2]} 3... d6 {[%clk 0:00:59.4]} 4. d4 {[%clk 0:00:56.3]} 4... exd4 {[%clk 0:00:58]} 5. Nxd4 {[%clk 0:00:55.1]} 5... Be6 {[%clk 0:00:56.9]} 6. Nxc6 {[%clk 0:00:53.1]} 6... bxc6 {[%clk 0:00:56.3]} 7. Qe2 {[%clk 0:00:49.9]} 7... Bxc4 {[%clk 0:00:55.1]} 8. Qxc4 {[%clk 0:00:49.6]} 8... Qd7 {[%clk 0:00:52.9]} 9. Nc3 {[%clk 0:00:45.8]} 9... d5 {[%clk 0:00:51.7]} 10. exd5 {[%clk 0:00:44.9]} 10... Nf6 {[%clk 0:00:50.7]} 11. dxc6 {[%clk 0:00:43.7]} 11... Qd8 {[%clk 0:00:48.5]} 12. Be3 {[%clk 0:00:43.1]} 12... Bd6 {[%clk 0:00:46.9]} 13. O-O {[%clk 0:00:41.9]} 13... Rb8 {[%clk 0:00:45.6]} 14. Rad1 {[%clk 0:00:41.3]} 14... O-O {[%clk 0:00:44.2]} 15. Bf4 {[%clk 0:00:39.1]} 15... Qe8 {[%clk 0:00:41.5]} 16. Bxd6 {[%clk 0:00:36.5]} 16... cxd6 {[%clk 0:00:41.1]} 17. Rxd6 {[%clk 0:00:36]} 17... Rd8 {[%clk 0:00:40.1]} 18. Rxd8 {[%clk 0:00:28.2]} 18... Qxd8 {[%clk 0:00:38.5]} 19. c7 {[%clk 0:00:28]} 19... Qc8 {[%clk 0:00:37.4]} 20. Nb5 {[%clk 0:00:26.5]} 20... Qb7 {[%clk 0:00:30.3]} 21. Nd6 {[%clk 0:00:23.5]} 21... Qd5 {[%clk 0:00:15.5]} 22. c8=Q {[%clk 0:00:16.8]} 22... Rxc8 {[%clk 0:00:14.1]} 23. Qxc8+ {[%clk 0:00:15.5]} 23... Ne8 {[%clk 0:00:09.2]} 24. Qxe8# {[%clk 0:00:14.5]} 1-0

[Event "Live Chess"]
[Site "Chess.com"]
[Date "2011.01.27"]
[Round "-"]
[White "germangreen_15"]
[Black "hipposcottimus"]
[Result "1-0"]
[CurrentPosition "8/pp4pp/8/P7/2p5/B1P1r3/K1P1kRp1/6r1 b - -"]
[Timezone "UTC"]
[ECO "C55"]
[ECOUrl "https://www.chess.com/openings/Italian-Game-Two-Knights-Defense"]
[UTCDate "2011.01.27"]
[UTCTime "03:51:53"]
[WhiteElo "1605"]
[BlackElo "1591"]
[TimeControl "60"]
[Termination "germangreen_15 won on time"]
[StartTime "03:51:53"]
[EndDate "2011.01.27"]
[EndTime "03:54:08"]
[Link "https://www.chess.com/game/live/91785771"]

1. e4 {[%clk 0:01:00]} 1... e5 {[%clk 0:01:00]} 2. Nf3 {[%clk 0:00:59.7]} 2... Nc6 {[%clk 0:00:58.4]} 3. Bc4 {[%clk 0:00:59.4]} 3... Nf6 {[%clk 0:00:57.9]} 4. Bd3 {[%clk 0:00:58.4]} 4... d5 {[%clk 0:00:56.9]} 5. Nc3 {[%clk 0:00:58.1]} 5... dxe4 {[%clk 0:00:55.5]} 6. Bxe4 {[%clk 0:00:57.8]} 6... Bb4 {[%clk 0:00:54.2]} 7. a3 {[%clk 0:00:55.6]} 7... Bxc3 {[%clk 0:00:52.9]} 8. bxc3 {[%clk 0:00:54.4]} 8... Bg4 {[%clk 0:00:50.7]} 9. h3 {[%clk 0:00:52.6]} 9... Bh5 {[%clk 0:00:49.8]} 10. g4 {[%clk 0:00:51.2]} 10... Nxg4 {[%clk 0:00:49.1]} 11. hxg4 {[%clk 0:00:49.2]} 11... Bxg4 {[%clk 0:00:48.8]} 12. Bd3 {[%clk 0:00:47.4]} 12... f5 {[%clk 0:00:45.7]} 13. Be2 {[%clk 0:00:46.6]} 13... e4 {[%clk 0:00:44.8]} 14. Ng5 {[%clk 0:00:45.5]} 14... O-O {[%clk 0:00:42.9]} 15. Bxg4 {[%clk 0:00:44.4]} 15... fxg4 {[%clk 0:00:42.2]} 16. Nxe4 {[%clk 0:00:43.2]} 16... Re8 {[%clk 0:00:40.2]} 17. Qe2 {[%clk 0:00:42.2]} 17... Qd5 {[%clk 0:00:35.8]} 18. d3 {[%clk 0:00:40.5]} 18... Nd8 {[%clk 0:00:32.9]} 19. Bb2 {[%clk 0:00:39.8]} 19... Nf7 {[%clk 0:00:32.2]} 20. O-O-O {[%clk 0:00:38.9]} 20... Nd6 {[%clk 0:00:30.8]} 21. Rde1 {[%clk 0:00:38]} 21... Nxe4 {[%clk 0:00:29.7]} 22. dxe4 {[%clk 0:00:37.3]} 22... Qg5+ {[%clk 0:00:29.2]} 23. Kb1 {[%clk 0:00:35.6]} 23... c5 {[%clk 0:00:24.6]} 24. Bc1 {[%clk 0:00:34.8]} 24... Qe7 {[%clk 0:00:22.3]} 25. Qe3 {[%clk 0:00:32.5]} 25... Qc7 {[%clk 0:00:21.7]} 26. Rhg1 {[%clk 0:00:31.2]} 26... Qb6+ {[%clk 0:00:21]} 27. Ka1 {[%clk 0:00:29.4]} 27... Rac8 {[%clk 0:00:19.8]} 28. Bb2 {[%clk 0:00:28.5]} 28... c4 {[%clk 0:00:18.8]} 29. Rb1 {[%clk 0:00:27.1]} 29... Qxe3 {[%clk 0:00:17.3]} 30. fxe3 {[%clk 0:00:25.7]} 30... Rxe4 {[%clk 0:00:17]} 31. Bc1 {[%clk 0:00:24.9]} 31... Rf8 {[%clk 0:00:14.5]} 32. Rd1 {[%clk 0:00:23.9]} 32... Rf3 {[%clk 0:00:13.6]} 33. Bb2 {[%clk 0:00:23]} 33... Kf7 {[%clk 0:00:13.3]} 34. a4 {[%clk 0:00:22.2]} 34... Kg6 {[%clk 0:00:12.9]} 35. Ba3 {[%clk 0:00:21.5]} 35... g3 {[%clk 0:00:12.6]} 36. a5 {[%clk 0:00:20.8]} 36... g2 {[%clk 0:00:12.3]} 37. Rg1 {[%clk 0:00:20.2]} 37... Rf2 {[%clk 0:00:11.2]} 38. Rbd1 {[%clk 0:00:18.3]} 38... Rxe3 {[%clk 0:00:10.3]} 39. Rd6+ {[%clk 0:00:17.2]} 39... Kg5 {[%clk 0:00:08.4]} 40. Rd5+ {[%clk 0:00:16.8]} 40... Kg6 {[%clk 0:00:07.4]} 41. Rd6+ {[%clk 0:00:16]} 41... Kg5 {[%clk 0:00:06.7]} 42. Rd5+ {[%clk 0:00:15.5]} 42... Kg4 {[%clk 0:00:06]} 43. Rd4+ {[%clk 0:00:14.8]} 43... Kf3 {[%clk 0:00:05.7]} 44. Rd6 {[%clk 0:00:12.3]} 44... Rf1+ {[%clk 0:00:04]} 45. Ka2 {[%clk 0:00:08.8]} 45... Rxg1 {[%clk 0:00:02.8]} 46. Rf6+ {[%clk 0:00:08.4]} 46... Ke2 {[%clk 0:00:01.6]} 47. Rf2+ {[%clk 0:00:07]} 1-0

[Event "Live Chess"]
[Site "Chess.com"]
[Date "2011.01.27"]
[Round "-"]
[White "Blocada"]
[Black "hipposcottimus"]
[Result "0-1"]
[CurrentPosition "8/5kpp/8/4B3/8/r7/p3KP2/8 w - -"]
[Timezone "UTC"]
[ECO "D11"]
[ECOUrl "https://www.chess.com/openings/Slav-Defense-Modern-Line"]
[UTCDate "2011.01.27"]
[UTCTime "03:48:48"]
[WhiteElo "1745"]
[BlackElo "1599"]
[TimeControl "60"]
[Termination "hipposcottimus won on time"]
[StartTime "03:48:48"]
[EndDate "2011.01.27"]
[EndTime "03:51:08"]
[Link "https://www.chess.com/game/live/91785133"]

1. d4 {[%clk 0:01:00]} 1... d5 {[%clk 0:01:00]} 2. Nf3 {[%clk 0:00:59]} 2... c6 {[%clk 0:00:59.6]} 3. c4 {[%clk 0:00:58.5]} 3... e6 {[%clk 0:00:59.3]} 4. Nc3 {[%clk 0:00:58]} 4... Bb4 {[%clk 0:00:57.1]} 5. a3 {[%clk 0:00:57.5]} 5... Bxc3+ {[%clk 0:00:56.8]} 6. bxc3 {[%clk 0:00:56]} 6... Nf6 {[%clk 0:00:56.3]} 7. Qc2 {[%clk 0:00:54.4]} 7... Nbd7 {[%clk 0:00:55.8]} 8. cxd5 {[%clk 0:00:53.9]} 8... cxd5 {[%clk 0:00:54.5]} 9. e3 {[%clk 0:00:53.4]} 9... O-O {[%clk 0:00:54.1]} 10. Bd3 {[%clk 0:00:52.6]} 10... a5 {[%clk 0:00:48.5]} 11. O-O {[%clk 0:00:52]} 11... b6 {[%clk 0:00:47.1]} 12. h3 {[%clk 0:00:51.4]} 12... Ba6 {[%clk 0:00:46.7]} 13. e4 {[%clk 0:00:49.9]} 13... Bxd3 {[%clk 0:00:45.5]} 14. Qxd3 {[%clk 0:00:49.4]} 14... dxe4 {[%clk 0:00:44.6]} 15. Qb5 {[%clk 0:00:46.6]} 15... exf3 {[%clk 0:00:43.5]} 16. gxf3 {[%clk 0:00:46.1]} 16... Nd5 {[%clk 0:00:41.6]} 17. c4 {[%clk 0:00:43.2]} 17... Nc7 {[%clk 0:00:37.7]} 18. Qb2 {[%clk 0:00:41.1]} 18... Nf6 {[%clk 0:00:36.5]} 19. Be3 {[%clk 0:00:39.2]} 19... Re8 {[%clk 0:00:36]} 20. Rad1 {[%clk 0:00:37.2]} 20... Nh5 {[%clk 0:00:35.4]} 21. d5 {[%clk 0:00:36.5]} 21... exd5 {[%clk 0:00:33.6]} 22. cxd5 {[%clk 0:00:36]} 22... Nf6 {[%clk 0:00:24.8]} 23. Bxb6 {[%clk 0:00:34.9]} 23... Qb8 {[%clk 0:00:20.6]} 24. d6 {[%clk 0:00:31.8]} 24... Ncd5 {[%clk 0:00:19.6]} 25. Bc7 {[%clk 0:00:30]} 25... Qxb2 {[%clk 0:00:18.2]} 26. d7 {[%clk 0:00:28]} 26... Nxd7 {[%clk 0:00:16.8]} 27. Rxd5 {[%clk 0:00:26]} 27... Qf6 {[%clk 0:00:14.8]} 28. Rxd7 {[%clk 0:00:24.6]} 28... Qg5+ {[%clk 0:00:14.5]} 29. Kh2 {[%clk 0:00:23.3]} 29... Qf4+ {[%clk 0:00:14]} 30. Kg1 {[%clk 0:00:21.9]} 30... Qxf3 {[%clk 0:00:12.2]} 31. Rfd1 {[%clk 0:00:20.8]} 31... Qxh3 {[%clk 0:00:10.9]} 32. Bg3 {[%clk 0:00:17.6]} 32... Rec8 {[%clk 0:00:09.2]} 33. Re7 {[%clk 0:00:16.2]} 33... Qg4 {[%clk 0:00:07.8]} 34. Rdd7 {[%clk 0:00:14.5]} 34... Qg6 {[%clk 0:00:06.3]} 35. Rxf7 {[%clk 0:00:12.6]} 35... Qxf7 {[%clk 0:00:06]} 36. Rxf7 {[%clk 0:00:11.7]} 36... Kxf7 {[%clk 0:00:05.7]} 37. Kg2 {[%clk 0:00:10.4]} 37... Rc3 {[%clk 0:00:05.1]} 38. Be5 {[%clk 0:00:08.7]} 38... Rxa3 {[%clk 0:00:03.9]} 39. Bd6 {[%clk 0:00:06.7]} 39... a4 {[%clk 0:00:03.5]} 40. Bxa3 {[%clk 0:00:05.6]} 40... Rb8 {[%clk 0:00:03.2]} 41. Bd6 {[%clk 0:00:04.2]} 41... Rb3 {[%clk 0:00:02.9]} 42. Be5 {[%clk 0:00:03]} 42... a3 {[%clk 0:00:02.6]} 43. Kf1 {[%clk 0:00:01.2]} 43... a2 {[%clk 0:00:02]} 44. Ke2 {[%clk 0:00:00.6]} 44... Ra3 {[%clk 0:00:01.4]} 0-1

[Event "Live Chess"]
[Site "Chess.com"]
[Date "2011.01.27"]
[Round "-"]
[White "hipposcottimus"]
[Black "froochie"]
[Result "1-0"]
[CurrentPosition "1q4k1/7p/6pr/5pK1/4b3/P7/8/8 b - -"]
[Timezone "UTC"]
[ECO "B20"]
[ECOUrl "https://www.chess.com/openings/Sicilian-Defense"]
[UTCDate "2011.01.27"]
[UTCTime "03:40:21"]
[WhiteElo "1603"]
[BlackElo "1295"]
[TimeControl "60+1"]
[Termination "hipposcottimus won on time"]
[StartTime "03:40:21"]
[EndDate "2011.01.27"]
[EndTime "03:43:59"]
[Link "https://www.chess.com/game/live/91783335"]

1. e4 {[%clk 0:01:00]} 1... c5 {[%clk 0:01:00]} 2. Bb5 {[%clk 0:00:58.9]} 2... a6 {[%clk 0:00:58.8]} 3. Be2 {[%clk 0:00:59.6]} 3... b5 {[%clk 0:00:57.2]} 4. c4 {[%clk 0:01:00.3]} 4... Nf6 {[%clk 0:00:57]} 5. cxb5 {[%clk 0:01:00.3]} 5... axb5 {[%clk 0:00:56.3]} 6. e5 {[%clk 0:01:00.3]} 6... Nd5 {[%clk 0:00:54.5]} 7. Bxb5 {[%clk 0:01:00.7]} 7... g6 {[%clk 0:00:54.4]} 8. Bc4 {[%clk 0:01:00.6]} 8... e6 {[%clk 0:00:53.5]} 9. Bxd5 {[%clk 0:01:00.5]} 9... exd5 {[%clk 0:00:53]} 10. Nf3 {[%clk 0:01:01.2]} 10... Bg7 {[%clk 0:00:53]} 11. d4 {[%clk 0:01:01.5]} 11... O-O {[%clk 0:00:53]} 12. dxc5 {[%clk 0:01:00.4]} 12... Qa5+ {[%clk 0:00:52.1]} 13. Bd2 {[%clk 0:00:59.7]} 13... Qxc5 {[%clk 0:00:52]} 14. Nc3 {[%clk 0:00:59.7]} 14... d4 {[%clk 0:00:51.2]} 15. Ne4 {[%clk 0:00:59.5]} 15... Qd5 {[%clk 0:00:50.1]} 16. Qe2 {[%clk 0:00:57.2]} 16... d6 {[%clk 0:00:50]} 17. Nxd6 {[%clk 0:00:54.7]} 17... Bxe5 {[%clk 0:00:47.5]} 18. Nxe5 {[%clk 0:00:50.4]} 18... Qxd6 {[%clk 0:00:46.9]} 19. O-O {[%clk 0:00:49.8]} 19... Bb7 {[%clk 0:00:44.3]} 20. Rfe1 {[%clk 0:00:46.4]} 20... Nc6 {[%clk 0:00:44.6]} 21. Nc4 {[%clk 0:00:43.9]} 21... Qd5 {[%clk 0:00:42.8]} 22. Qd3 {[%clk 0:00:43.3]} 22... Nb4 {[%clk 0:00:42.3]} 23. Qg3 {[%clk 0:00:41.8]} 23... Nc2 {[%clk 0:00:36.8]} 24. Nb6 {[%clk 0:00:37.2]} 24... Qh5 {[%clk 0:00:31.5]} 25. Nxa8 {[%clk 0:00:36.9]} 25... Nxe1 {[%clk 0:00:31.2]} 26. Rxe1 {[%clk 0:00:34.4]} 26... Bxa8 {[%clk 0:00:31.7]} 27. Bb4 {[%clk 0:00:33.3]} 27... Rc8 {[%clk 0:00:26.6]} 28. Qf4 {[%clk 0:00:33.1]} 28... f5 {[%clk 0:00:24.9]} 29. Qxd4 {[%clk 0:00:31.4]} 29... Be4 {[%clk 0:00:22.5]} 30. Qc4+ {[%clk 0:00:31.4]} 30... Rxc4 {[%clk 0:00:19]} 31. b3 {[%clk 0:00:31.3]} 31... Rxb4 {[%clk 0:00:17.9]} 32. a3 {[%clk 0:00:31.8]} 32... Rxb3 {[%clk 0:00:17.2]} 33. g4 {[%clk 0:00:32.5]} 33... Qxg4+ {[%clk 0:00:16.4]} 34. Kf1 {[%clk 0:00:32.3]} 34... Qg2+ {[%clk 0:00:15.8]} 35. Ke2 {[%clk 0:00:33]} 35... Rb2+ {[%clk 0:00:14.6]} 36. Ke3 {[%clk 0:00:33.7]} 36... Qf3+ {[%clk 0:00:14.2]} 37. Kd4 {[%clk 0:00:30]} 37... Rd2+ {[%clk 0:00:14.1]} 38. Ke5 {[%clk 0:00:30]} 38... Qc3+ {[%clk 0:00:11.6]} 39. Ke6 {[%clk 0:00:28.5]} 39... Rxf2 {[%clk 0:00:11.4]} 40. Kd6 {[%clk 0:00:26.9]} 40... Qxe1 {[%clk 0:00:11.3]} 41. Ke7 {[%clk 0:00:26.3]} 41... Qa5 {[%clk 0:00:10.5]} 42. Kf6 {[%clk 0:00:26.8]} 42... Bg2 {[%clk 0:00:09.8]} 43. Kg5 {[%clk 0:00:27]} 43... Rd2 {[%clk 0:00:09.2]} 44. h4 {[%clk 0:00:27.5]} 44... Be4 {[%clk 0:00:09.1]} 45. h5 {[%clk 0:00:28.1]} 45... Rh2 {[%clk 0:00:08.8]} 46. h6 {[%clk 0:00:27.9]} 46... Rh4 {[%clk 0:00:07.1]} 47. Kf6 {[%clk 0:00:27]} 47... Qd8+ {[%clk 0:00:05.8]} 48. Ke5 {[%clk 0:00:25.4]} 48... Qb8+ {[%clk 0:00:02.6]} 49. Kf6 {[%clk 0:00:25.1]} 49... Rxh6 {[%clk 0:00:01.7]} 50. Kg5 {[%clk 0:00:24.9]} 1-0